bitfinex/quotes_SOLUSD_20240708
["timestamp","ask_amount","ask_price","bid_price","bid_amount"]
[1720417934826,100.0,132.92,132.87,0.17]
[1720417935125,100.0,132.92,132.87,20.17]
[1720417937436,100.0,132.97,132.88,38.16]
[1720417937645,100.0,132.97,132.89,20.17]
[1720417938853,100.0,132.95,132.89,20.17]
[1720417940557,100.0,132.92,132.89,20.0]
[1720417940724,100.0,132.92,132.86,38.16]
[1720417940725,100.0,132.92,132.87,20.0]
[1720417941530,100.0,132.94,132.87,20.0]
[1720417942353,100.0,132.94,132.88,0.17]
[1720417943031,116.5749,132.98,132.89,15.927]
[1720417943237,116.5749,132.98,132.9,20.17]
[1720417943238,100.0,132.96,132.9,20.17]
[1720417944633,100.0,132.93,132.9,20.17]
[1720417949756,100.0,132.95,132.9,20.17]
[1720417949952,100.0,132.97,132.9,20.17]
[1720417951344,100.0,132.97,132.9,26.4169]
[1720417953578,100.0,132.95,132.9,26.4169]
[1720417954543,100.0,132.95,132.93,19.08]
[1720417955473,100.0,132.95,132.9,26.4169]
[1720417955641,100.0,132.95,132.93,19.08]
[1720417956071,6.6364,133.0,132.9,26.2469]
[1720417956072,100.0,132.93,132.9,26.2469]
[1720417956274,100.0,132.96,132.92,19.08]
[1720417956574,100.0,132.96,132.93,19.08]
[1720417957445,100.0,132.96,132.94,19.08]
[1720417958765,100.0,132.96,132.95,19.08]
[1720417958966,100.0,132.96,132.94,19.08]
[1720417961169,100.0,133.03,132.95,19.08]
[1720417961380,100.0,133.03,133.0,19.08]
[1720417961677,100.0,133.03,133.02,19.08]
[1720417963801,100.0,133.05,133.02,19.08]
[1720417963998,100.0,133.06,133.04,19.08]
[1720417964186,100.0,133.06,133.05,19.08]
[1720417964365,100.8564901,133.08,133.05,19.08]
[1720417964566,0.8564901,133.08,133.02,44.378]
[1720417964872,0.8564901,133.08,133.04,38.08]
[1720417965093,0.8564901,133.08,133.05,20.17]
[1720417965395,100.0,133.07,133.03,20.0]
[1720417965595,100.0,133.07,133.04,0.17]
[1720417966601,100.0,133.07,133.03,20.0]
[1720417966798,100.0,133.05,133.03,20.0]
[1720417968170,100.0,133.05,133.02,20.17]
[1720417969501,100.0,133.05,133.03,0.17]
[1720417972080,100.0,133.05,133.02,20.0]
[1720417972876,100.0,133.05,133.01,20.17]
[1720417973200,100.0,133.07,133.02,0.17]
[1720417974506,100.0,133.05,133.02,0.17]
[1720417974702,100.0,133.03,132.99,38.08]
[1720417975877,100.0,133.03,133.0,20.0]
[1720417976204,100.0,133.05,133.0,20.0]
[1720417976398,100.0,133.03,133.0,20.0]
[1720417976607,16.2173,133.06,132.98,0.17]
[1720417976608,100.0,133.05,132.99,38.08]
[1720417976772,100.0,133.05,133.0,20.17]
[1720417979090,0.8564901,133.08,133.01,38.08]
[1720417979271,0.8564901,133.08,133.02,20.17]
[1720417980290,0.8564901,133.08,133.03,38.08]
[1720417980611,0.8564901,133.08,133.04,20.0]
[1720417980612,100.0,133.06,133.04,20.0]
[1720417981101,0.8564901,133.08,133.04,20.0]
[1720417981305,0.8564901,133.08,133.05,0.17]
[1720417982185,100.0,133.07,133.05,0.17]
[1720417984703,100.0,133.07,133.01,21.8011]
[1720417984910,100.0,133.04,132.99,43.96954816]
[1720417986272,100.0,133.04,133.0,0.17]
[1720417986472,100.0,133.06,133.0,0.17]
[1720417986679,16.2229,133.07,133.0,0.17]
[1720417986981,16.2229,133.07,133.01,38.08]
[1720417987182,16.2229,133.07,133.02,20.17]
[1720417987972,100.8564901,133.08,133.02,20.17]
[1720417988378,100.8564901,133.08,133.03,38.08]
[1720417988573,100.8564901,133.08,133.04,20.17]
[1720417989037,0.8564901,133.08,133.04,20.17]
[1720417989247,0.8564901,133.08,133.05,38.08]
[1720417989417,0.8564901,133.08,133.06,20.17]
[1720417989836,100.0,133.11,133.06,20.17]
[1720417990147,16.4561,133.14,133.07,38.08]
[1720417990335,100.0,133.11,133.08,20.17]
[1720417990647,100.0,133.11,133.08,20.0]
[1720417990942,100.0,133.13,133.09,0.17]
[1720417992748,100.0,133.1,133.08,20.0]
[1720417994134,100.0,133.12,133.08,20.0]
[1720417994834,116.4561,133.14,133.08,20.0]
[1720417995431,100.0,133.12,133.08,20.0]
[1720417996411,116.4561,133.14,133.08,20.0]
[1720417997429,100.0,133.11,133.08,20.0]
[1720417997613,100.0,133.09,133.08,20.0]
[1720417997818,100.0,133.12,133.08,20.0]
[1720417998538,16.4561,133.14,133.08,20.0]
[1720417998539,100.0,133.1,133.08,20.0]
[1720417998737,100.0,133.08,133.03,54.24186279]
[1720417998937,100.0,133.08,133.01,15.0852]
[1720417999121,100.0,133.08,133.02,38.08]
[1720417999824,100.0,133.13,133.04,38.08]
[1720418000016,100.0,133.13,133.05,20.17]
[1720418000223,100.0,133.13,133.06,38.08]
[1720418000524,100.0,133.13,133.07,20.17]
[1720418002146,100.0,133.15,133.07,35.8913]
[1720418002457,100.0,133.15,133.08,38.08]
[1720418002743,100.0,133.15,133.09,20.17]
[1720418003123,16.0542,133.17,133.09,20.17]
[1720418003124,100.0,133.16,133.09,20.17]
[1720418006342,100.0,133.16,133.1,38.08]
[1720418006649,100.0,133.16,133.11,20.17]
[1720418007235,100.0,133.14,133.11,20.0]
[1720418007451,100.0,133.14,133.1,20.0]
[1720418008448,100.0,133.16,133.11,0.17]
[1720418013847,100.0,133.12,133.1,58.08]
[1720418014024,100.0,133.12,133.1,20.0]
[1720418014454,100.0,133.12,133.08,20.0]
[1720418016328,100.0,133.12,133.09,0.17]
[1720418018239,100.0,133.16,133.09,0.17]
[1720418018961,100.0,133.16,133.09,38.25]
[1720418019267,100.0,133.16,133.1,20.0]
[1720418019636,100.0,133.16,133.11,0.17]
[1720418020351,100.0,133.14,133.1,20.0]
[1720418022259,100.0,133.16,133.1,20.0]
[1720418022448,100.0,133.16,133.11,0.17]
[1720418026538,100.0,133.16,133.1,20.0]
[1720418026539,100.0,133.14,133.1,20.0]
[1720418027948,100.0,133.17,133.1,20.0]
[1720418028158,100.0,133.17,133.11,0.17]
[1720418032676,100.0,133.17,133.14,19.02]
[1720418033555,100.0,133.14,133.13,19.02]
[1720418033749,100.0,133.14,133.13,39.02]
[1720418035764,100.0,133.12,133.07,21.7076458]
[1720418035978,100.0,133.12,133.11,19.02]
[1720418036141,100.0,133.12,133.07,21.7076458]
[1720418036767,100.0,133.12,133.1,19.02]
[1720418037452,100.0,133.12,133.07,40.7276458]
[1720418037765,100.0,133.12,133.11,19.02]
[1720418039170,100.0,133.14,133.11,19.02]
[1720418039378,100.0,133.14,133.13,19.02]
[1720418040245,100.0,133.14,133.12,19.02]
[1720418040668,35.608,133.17,133.07,97.7876458]
[1720418040669,100.0,133.11,133.07,97.7876458]
[1720418040860,100.0,133.11,133.1,19.02]
[1720418042977,100.0,133.09,133.07,5.9863458]
[1720418043184,100.0,133.07,133.02,6.4886]
[1720418043394,100.0,133.03,133.0,16.1036]
[1720418043690,100.0,133.03,133.02,19.02]
[1720418044046,100.0,133.03,132.97,16.1036]
[1720418044275,100.0,133.03,133.01,19.02]
[1720418045250,100.0,133.03,133.02,19.02]
[1720418046072,100.0,133.05,133.02,19.02]
[1720418046381,100.0,133.06,133.04,19.02]
[1720418046575,100.0,133.08,133.01,38.08]
[1720418046778,100.0,133.08,133.02,20.0]
[1720418046967,100.0,133.08,133.02,20.17]
[1720418047782,15.4249,133.09,133.02,20.17]
[1720418047964,100.0,133.08,133.02,20.17]
[1720418048364,100.0,133.05,133.02,20.17]
[1720418048891,100.0,133.05,133.03,20.0]
[1720418049058,100.0,133.05,133.02,0.17]
[1720418050285,100.0,133.08,133.02,38.25]
[1720418050477,15.4249,133.09,133.03,20.0]
[1720418051457,100.0,133.1,133.03,20.0]
[1720418051656,100.0,133.1,133.04,38.25]
[1720418051856,100.0,133.1,133.05,20.0]
[1720418052590,100.0,133.08,133.05,20.0]
[1720418052755,100.0,133.06,133.05,20.0]
[1720418052956,100.0,133.06,133.03,20.0]
[1720418053982,100.0,133.1,133.04,0.17]
[1720418054163,100.0,133.1,133.04,38.25]
[1720418054477,100.0,133.1,133.05,20.0]
[1720418056791,100.0,133.08,133.05,20.0]
[1720418056968,100.0,133.06,133.05,20.0]
[1720418057158,100.0,133.06,133.04,0.17]
[1720418057979,100.0,133.06,133.03,20.0]
[1720418065104,100.0,133.06,133.02,20.0]
[1720418065513,100.0,133.04,133.02,20.0]
[1720418067184,16.5553,133.07,132.99,38.08]
[1720418067185,100.0,133.01,132.99,38.08]
[1720418067389,100.0,133.01,132.96,38.08]
[1720418068394,100.0,133.03,132.96,38.08]
[1720418068594,100.0,133.03,132.97,20.17]
[1720418069718,100.0,133.03,132.98,38.08]
[1720418069919,100.0,133.03,132.99,20.0]
[1720418070315,100.0,133.05,133.0,0.17]
[1720418070616,100.0,133.05,133.0,38.25]
[1720418070795,100.0,133.05,133.01,20.0]
[1720418071793,116.5553,133.07,133.01,20.0]
[1720418073092,100.0,133.05,133.01,20.0]
[1720418073320,100.0,133.03,133.01,20.0]
[1720418073821,100.0,133.03,132.99,20.0]
[1720418074004,100.0,133.05,132.98,38.25]
[1720418074204,100.0,133.05,133.0,38.08]
[1720418074411,116.5553,133.07,133.01,20.17]
[1720418076303,100.0,133.05,133.01,20.17]
[1720418078321,100.0,133.05,133.01,20.0]
[1720418079221,116.5553,133.07,133.01,20.0]
[1720418079620,116.5553,133.07,133.02,0.17]
[1720418079621,100.0,133.07,133.02,0.17]
[1720418079819,0.10290308,133.05,133.02,38.25]
[1720418080019,0.10290308,133.05,133.03,20.0]
[1720418081422,0.10290308,133.05,133.02,0.17]
[1720418081423,100.10290308,133.05,133.02,0.17]
[1720418083231,0.10290308,133.05,133.02,0.17]
[1720418083431,115.6647,133.1,133.02,38.25]
[1720418083735,115.6647,133.1,133.04,38.08]
[1720418083736,100.0,133.1,133.04,38.08]
[1720418083920,100.0,133.1,133.05,20.17]
[1720418084528,100.0,133.1,133.08,19.03]
[1720418086313,100.0,133.07,133.05,20.0]
[1720418086496,100.0,133.07,133.06,19.03]
[1720418086705,100.0,133.07,133.06,20.0]
[1720418087314,100.0,133.07,133.03,20.0]
[1720418089335,100.0,133.09,133.03,20.0]
[1720418089628,100.0,133.04,133.0,15.2131]
[1720418090019,100.0,133.06,133.0,15.2131]
[1720418090711,100.0,133.06,133.01,0.17]
[1720418091032,100.0,133.06,133.0,15.2131]
[1720418091202,100.0,133.04,133.0,15.2131]
[1720418091408,100.0,133.04,133.01,20.0]
[1720418093520,100.0,133.06,133.01,20.0]
[1720418096639,100.0,133.06,133.02,0.17]
[1720418096825,100.0,133.06,133.03,38.07]
[1720418097013,100.0,133.06,133.04,20.0]
[1720418097213,100.0,133.09,133.04,20.0]
[1720418098435,100.0,133.11,133.04,20.0]
[1720418098607,100.0,133.11,133.05,0.17]
[1720418099241,100.0,133.11,133.04,20.0]
[1720418099736,100.0,133.09,133.04,20.0]
[1720418100437,100.0,133.09,133.05,0.17]
[1720418100612,100.0,133.09,133.04,20.0]
[1720418102447,100.0,133.07,133.04,20.0]
[1720418102938,22.7495,133.12,133.04,20.0]
[1720418102939,100.0,133.09,133.04,20.0]
[1720418103547,100.0,133.09,133.04,38.07]
[1720418103750,100.0,133.09,133.05,20.17]
[1720418103923,122.7495,133.12,133.05,20.17]
[1720418104121,15.1,133.19,133.06,38.07]
[1720418104122,100.0,133.14,133.06,38.07]
[1720418104321,100.0,133.14,133.08,38.07]
[1720418104518,100.0,133.14,133.1,38.07]
[1720418104718,100.0,133.17,133.11,20.0]
[1720418104924,100.0,133.17,133.11,35.332]
[1720418105139,100.0,133.17,133.12,38.07]
[1720418105345,100.0,133.17,133.13,20.17]
[1720418105843,116.436,133.19,133.13,20.17]
[1720418106622,100.0,133.17,133.13,20.0]
[1720418106936,100.0,133.15,133.13,20.0]
[1720418107136,100.0,133.15,133.1,38.07]
[1720418107137,100.0,133.13,133.11,20.0]
[1720418107453,100.0,133.13,133.09,20.0]
[1720418108326,100.0,133.11,133.09,20.0]
[1720418109153,100.0,133.11,133.07,38.07]
[1720418110342,100.0,133.11,133.08,20.0]
[1720418111844,100.0,133.18,133.09,0.17]
[1720418112052,100.0,133.18,133.09,38.24]
[1720418112258,100.0,133.18,133.1,20.0]
[1720418112541,100.0,133.16,133.11,0.17]
[1720418114617,16.436,133.19,133.11,38.24]
[1720418114618,100.0,133.18,133.11,38.24]
[1720418114855,100.0,133.18,133.13,38.07]
[1720418115060,100.0,133.18,133.15,38.07]
[1720418115229,0.1,133.19,133.16,20.17]
[1720418115431,16.4874,133.24,133.17,38.07]
[1720418115646,100.0,133.23,133.18,20.0]
[1720418116264,106.3359,133.25,133.18,20.0]
[1720418116855,100.0,133.25,133.19,0.17]
[1720418117155,100.0,133.25,133.19,38.24]
[1720418117355,100.0,133.25,133.2,20.0]
[1720418117767,100.0,133.23,133.2,20.0]
[1720418118452,100.0,133.25,133.2,20.0]
[1720418119936,100.0,133.23,133.2,20.0]
[1720418122864,100.0,133.25,133.2,20.0]
[1720418125151,0.1,133.29,133.21,38.07]
[1720418125152,100.0,133.27,133.21,38.07]
[1720418125326,100.0,133.27,133.23,38.07]
[1720418125531,100.0,133.27,133.24,20.0]
[1720418126153,100.1,133.29,133.24,20.0]
[1720418127843,100.0,133.27,133.24,20.0]
[1720418128047,100.1,133.29,133.23,38.07]
[1720418128251,100.0,133.26,133.24,20.0]
[1720418128772,100.0,133.26,133.22,20.17]
[1720418130560,100.0,133.26,133.22,0.17]
[1720418130751,100.0,133.26,133.22,20.17]
[1720418131148,100.0,133.28,133.22,20.17]
[1720418131551,100.0,133.28,133.23,38.07]
[1720418131753,100.0,133.28,133.24,20.17]
[1720418134042,0.1,133.29,133.24,20.17]
[1720418134535,0.1,133.29,133.25,38.07]
[1720418134735,0.1,133.29,133.27,38.07]
[1720418134962,0.1,133.29,133.28,20.0]
[1720418135554,0.8564901,133.34,133.28,20.0]
[1720418135758,100.0,133.33,133.28,20.0]
[1720418136745,0.8564901,133.34,133.29,38.07]
[1720418137079,0.8564901,133.34,133.3,20.0]
[1720418137374,100.0,133.35,133.31,38.24]
[1720418137569,100.0,133.35,133.32,20.0]
[1720418140645,100.0,133.33,133.32,20.0]
[1720418140849,100.0,133.31,133.26,21.6006]
[1720418141060,100.0,133.29,133.27,38.07]
[1720418141246,100.0,133.29,133.26,21.6006]
[1720418141468,100.0,133.33,133.26,27.55606866]
[1720418142378,100.0,133.33,133.27,0.17]
[1720418142585,100.0,133.33,133.27,58.24]
[1720418142880,100.0,133.28,133.26,5.95546866]
[1720418143084,100.0,133.28,133.24,43.93140341]
[1720418143261,100.0,133.28,133.24,38.07]
[1720418144367,100.0,133.32,133.24,38.07]
[1720418144570,100.0,133.32,133.26,38.07]
[1720418144789,100.0,133.32,133.28,38.07]
[1720418145267,100.0,133.32,133.29,20.0]
[1720418145465,100.0,133.31,133.29,20.0]
[1720418145669,100.0,133.31,133.26,38.07]
[1720418145981,100.0,133.31,133.27,20.17]
[1720418146975,100.0,133.29,133.27,20.0]
[1720418147279,100.0,133.32,133.27,20.0]
[1720418148961,100.0,133.35,133.28,38.24]
[1720418149157,100.0,133.35,133.29,20.0]
[1720418149957,100.0,133.33,133.29,20.0]
[1720418151878,100.0,133.35,133.3,38.07]
[1720418152178,100.0,133.35,133.31,20.0]
[1720418152372,116.3973,133.37,133.32,0.17]
[1720418152561,116.3973,133.37,133.31,20.0]
[1720418152763,116.3973,133.37,133.32,0.17]
[1720418152961,100.0,133.37,133.32,0.17]
[1720418153479,100.0,133.37,133.32,38.24]
[1720418153685,100.0,133.37,133.33,20.0]
[1720418153978,0.1,133.39,133.33,20.0]
[1720418154286,0.1,133.39,133.34,38.07]
[1720418154576,0.1,133.39,133.35,20.0]
[1720418155080,0.1,133.39,133.36,38.07]
[1720418155287,0.1,133.39,133.38,38.07]
[1720418155484,0.1,133.39,133.38,58.24]
[1720418155658,84.04458799,133.42,133.38,58.24]
[1720418155859,84.04458799,133.42,133.41,38.07]
[1720418156179,84.04458799,133.42,133.41,58.24]
[1720418156362,84.04458799,133.42,133.41,64.4127]
[1720418156561,81.78719577,133.42,133.41,64.4127]
[1720418156877,77.05946123,133.42,133.41,64.4127]
[1720418157059,75.05946123,133.42,133.41,64.4127]
[1720418157263,70.80206901,133.42,133.41,64.4127]
[1720418157565,66.80206901,133.42,133.41,64.4127]
[1720418157762,63.80206901,133.42,133.41,64.4127]
[1720418158163,63.80206901,133.42,133.41,58.24]
[1720418158381,59.92206901,133.42,133.41,20.0]
[1720418158684,53.37376901,133.42,133.41,20.0]
[1720418158880,51.37376901,133.42,133.41,20.0]
[1720418159084,47.68833998,133.42,133.41,20.0]
[1720418159586,45.68833998,133.42,133.41,20.0]
[1720418159884,43.43298405,133.42,133.41,20.17]
[1720418160185,39.43298405,133.42,133.41,26.22542319]
[1720418160357,39.43298405,133.42,133.41,26.05542319]
[1720418160559,39.43298405,133.42,133.4,38.07]
[1720418161361,139.43298405,133.42,133.4,38.07]
[1720418161564,39.43298405,133.42,133.36,38.07]
[1720418161779,39.43298405,133.42,133.34,43.97402265]
[1720418162485,100.0,133.41,133.34,43.97402265]
[1720418163763,39.43298405,133.42,133.34,43.97402265]
[1720418163978,100.0,133.41,133.34,43.97402265]
[1720418164271,100.0,133.41,133.36,38.07]
[1720418165170,39.43298405,133.42,133.37,20.0]
[1720418165681,100.0,133.41,133.37,20.0]
[1720418165872,100.0,133.41,133.35,20.0]
[1720418166198,39.43298405,133.42,133.32,44.00332831]
[1720418166199,100.0,133.39,133.32,44.00332831]
[1720418166988,100.0,133.39,133.34,38.07]
[1720418167169,39.43298405,133.42,133.36,38.07]
[1720418167490,39.43298405,133.42,133.38,38.07]
[1720418167695,39.43298405,133.42,133.32,16.35553044]
[1720418167696,100.0,133.41,133.39,20.0]
[1720418168300,39.43298405,133.42,133.36,20.0]
[1720418168674,100.0,133.41,133.36,20.0]
[1720418169775,39.43298405,133.42,133.36,20.0]
[1720418171202,39.43298405,133.42,133.37,44.1387]
[1720418171502,39.43298405,133.42,133.39,38.07]
[1720418171666,39.43298405,133.42,133.4,20.17]
[1720418171876,34.73101845,133.42,133.4,20.17]
[1720418172493,28.80901845,133.42,133.41,38.07]
[1720418172701,28.80901845,133.42,133.41,58.24]
[1720418172899,28.80901845,133.42,133.41,20.0]
[1720418173203,17.14201845,133.42,133.39,38.07]
[1720418173393,17.14201845,133.42,133.41,38.07]
[1720418173603,14.88649297,133.42,133.41,58.24]
[1720418174704,14.88649297,133.42,133.41,20.17]
[1720418174880,14.88649297,133.42,133.41,0.17]
[1720418175390,14.88649297,133.42,133.4,20.0]
[1720418175704,14.88649297,133.42,133.38,20.0]
[1720418175906,14.88649297,133.42,133.37,20.0]
[1720418176105,14.88649297,133.42,133.34,12.75866765]
[1720418176106,14.88649297,133.42,133.36,20.0]
[1720418178199,14.88649297,133.42,133.37,0.17]
[1720418180781,114.88649297,133.42,133.37,0.17]
[1720418181103,131.36839297,133.42,133.35,15.86457167]
[1720418181476,31.36839297,133.42,133.35,15.86457167]
[1720418182304,31.36839297,133.42,133.36,0.17]
[1720418182999,31.36839297,133.42,133.36,20.17]
[1720418183810,14.88649297,133.42,133.36,20.17]
[1720418185481,100.0,133.41,133.36,20.17]
[1720418189294,100.0,133.4,133.36,20.0]
[1720418189490,114.88649297,133.42,133.36,20.0]
[1720418190187,14.88649297,133.42,133.36,20.0]
[1720418190795,14.88649297,133.42,133.37,0.17]
[1720418194203,0.8564901,133.47,133.38,6.3925]
[1720418194392,0.8564901,133.47,133.39,20.17]
[1720418194590,0.8564901,133.47,133.43,37.85]
[1720418194809,0.8564901,133.47,133.44,20.0]
[1720418195496,100.8564901,133.47,133.44,20.0]
[1720418197897,0.1,133.49,133.44,20.0]
[1720418198103,0.1,133.49,133.45,37.85]
[1720418198419,0.1,133.49,133.46,20.0]
[1720418198799,100.0,133.51,133.46,20.0]
[1720418199106,21.938,133.52,133.46,20.0]
[1720418199414,21.938,133.52,133.47,37.85]
[1720418199601,21.938,133.52,133.48,20.0]
[1720418200231,100.0,133.51,133.48,20.0]
[1720418200531,100.0,133.5,133.48,20.0]
[1720418200725,100.0,133.48,133.46,20.0]
[1720418200887,100.0,133.48,133.43,37.85]
[1720418201092,100.0,133.51,133.45,37.85]
[1720418202025,116.3094,133.56,133.47,37.85]
[1720418202191,116.3094,133.56,133.49,37.85]
[1720418202390,116.3094,133.56,133.5,20.0]
[1720418203319,116.3094,133.56,133.51,38.02]
[1720418203320,16.3094,133.56,133.51,38.02]
[1720418203494,16.3094,133.56,133.52,20.0]
[1720418203818,100.0,133.54,133.52,20.0]
[1720418203990,16.3094,133.56,133.45,12.23230813]
[1720418203991,100.0,133.52,133.45,12.23230813]
[1720418204327,16.3094,133.56,133.46,57.85]
[1720418204328,100.0,133.54,133.46,57.85]
[1720418204493,100.0,133.54,133.48,37.85]
[1720418204694,100.0,133.54,133.49,20.0]
[1720418206121,16.3094,133.56,133.49,20.0]
[1720418206416,116.3094,133.56,133.49,20.0]
[1720418207213,100.0,133.52,133.49,20.0]
[1720418207620,100.0,133.52,133.47,20.0]
[1720418207924,100.0,133.54,133.47,20.0]
[1720418208432,100.0,133.55,133.48,37.85]
[1720418208593,100.0,133.55,133.49,20.0]
[1720418209627,100.0,133.53,133.49,20.0]
[1720418210195,16.3094,133.56,133.46,37.85]
[1720418210196,100.0,133.51,133.47,20.0]
[1720418211109,100.0,133.51,133.46,37.85]
[1720418211314,15.7572,133.5,133.41,6.5139]
[1720418211495,100.0,133.49,133.43,37.85]
[1720418212004,100.0,133.47,133.43,37.85]
[1720418212518,100.0,133.47,133.41,6.07080992]
[1720418212726,100.0,133.45,133.4,37.85]
[1720418213697,100.0,133.45,133.41,20.0]
[1720418213893,100.0,133.47,133.41,20.0]
[1720418214520,100.0,133.47,133.42,0.17]
[1720418215606,100.0,133.45,133.41,20.0]
[1720418217123,100.0,133.43,133.35,15.2434]
[1720418217421,100.0,133.43,133.36,37.85]
[1720418217995,100.0,133.45,133.38,37.85]
[1720418218433,100.0,133.45,133.39,20.17]
[1720418219131,100.0,133.43,133.39,20.17]
[1720418219321,100.0,133.45,133.39,20.17]
[1720418220515,100.0,133.45,133.39,20.0]
[1720418220733,100.0,133.41,133.39,20.0]
[1720418220937,100.0,133.41,133.36,20.0]
[1720418221104,22.9021,133.44,133.36,20.0]
[1720418221105,100.0,133.43,133.36,20.0]
[1720418221310,100.0,133.43,133.37,37.85]
[1720418221617,100.0,133.41,133.38,20.0]
[1720418222006,100.0,133.39,133.38,20.0]
[1720418222212,100.0,133.37,133.31,9.76276279]
[1720418222410,100.0,133.37,133.32,37.85]
[1720418222631,100.0,133.39,133.32,37.85]
[1720418223742,100.0,133.39,133.33,20.0]
[1720418225511,16.3471,133.38,133.32,37.85]
[1720418225722,100.0,133.35,133.3,37.85]
[1720418225916,100.0,133.35,133.28,399.96276279]
[1720418226138,100.0,133.35,133.29,37.85]
[1720418226849,100.0,133.35,133.3,0.17]
[1720418227340,100.0,133.33,133.28,6.00292875]
[1720418227511,100.0,133.35,133.29,20.0]
[1720418227713,100.0,133.35,133.28,20.0]
[1720418228913,100.0,133.37,133.29,37.85]
[1720418229116,100.0,133.37,133.3,20.17]
[1720418230449,100.0,133.37,133.32,37.85]
[1720418230612,100.0,133.37,133.33,20.0]
[1720418230939,100.0,133.35,133.33,20.0]
[1720418231240,100.0,133.35,133.31,20.0]
[1720418232442,100.0,133.33,133.31,20.0]
[1720418232845,100.0,133.33,133.29,20.0]
[1720418233130,100.0,133.36,133.3,37.85]
[1720418233338,100.0,133.36,133.31,20.0]
[1720418235725,100.0,133.34,133.31,20.0]
[1720418236541,100.0,133.34,133.27,6.12617721]
[1720418236840,22.4346,133.38,133.23,646.3]
[1720418236841,100.0,133.33,133.26,37.85]
[1720418237929,100.0,133.33,133.27,0.17]
[1720418238125,100.0,133.31,133.26,37.85]
[1720418238329,100.0,133.31,133.24,53.7513]
[1720418238637,100.0,133.31,133.24,59.80947497]
[1720418238841,100.0,133.31,133.25,20.0]
[1720418240853,100.0,133.34,133.28,37.85]
[1720418241021,100.0,133.37,133.29,20.17]
[1720418242645,100.0,133.37,133.3,37.85]
[1720418242851,100.0,133.35,133.31,20.17]
[1720418243228,100.0,133.33,133.31,20.0]
[1720418243426,100.0,133.33,133.24,21.95947497]
[1720418243632,100.0,133.31,133.25,37.85]
[1720418244056,100.0,133.33,133.25,37.85]